fUSD/lending_fUSD_20250423
["ID","MTS","AMOUNT","RATE_DAILY","PERIOD"]
[358707841,1745397061776,-593.74,0.000467,30]
[358707842,1745397061786,-593.74,0.000467,30]
[358707843,1745397061796,-593.74,0.000467,30]
[358707844,1745397061805,-593.74,0.000467,30]
[358707845,1745397061814,-593.74,0.000467,30]
[358707846,1745397061825,-593.74,0.000467,30]
[358707847,1745397061834,-593.74,0.000467,30]
[358707848,1745397061843,-593.74,0.000467,30]
[358707849,1745397061853,-593.74,0.000467,30]
[358707850,1745397061863,-593.74,0.000467,30]
[358707851,1745397061872,-593.74,0.000467,30]
[358707852,1745397061881,-593.74,0.000467,30]
[358707853,1745397061891,-593.74,0.000467,30]
[358707854,1745397061900,-593.74,0.000467,30]
[358707855,1745397061910,-593.74,0.000467,30]
[358707856,1745397061919,-593.74,0.000467,30]
[358707857,1745397061929,-500.0,0.000467,30]
[358707858,1745397061939,-593.74,0.000467,30]
[358707859,1745397061948,-528.14979989,0.000467,30]
[358707860,1745397061958,-593.74,0.000467,30]
[358707861,1745397061967,-593.74,0.000467,30]
[358707862,1745397061977,-593.74,0.000467,30]
[358707863,1745397061986,-593.74,0.000467,30]
[358707864,1745397061996,-593.78771532,0.000467,30]
[358707865,1745397062005,-500.0,0.000467,30]
[358707866,1745397062014,-500.0,0.000467,30]
[358707867,1745397062023,-509.7601843,0.000467,30]
[358707868,1745397062033,-500.0,0.000467,30]
[358707869,1745397062043,-500.0,0.000467,30]
[358707870,1745397062052,-500.0,0.000467,30]
[358707871,1745397062061,-500.0,0.000467,30]
[358707872,1745397062071,-294.15313387,0.000467,30]
[358707873,1745397062080,-600.29522483,0.000467,30]
[358707874,1745397062089,-500.0,0.000467,30]
[358707875,1745397062098,-500.0,0.000467,30]
[358707876,1745397062109,-513.34798142,0.000467,30]
[358707877,1745397062119,-500.0,0.000467,30]
[358707878,1745397062129,-500.0,0.000467,30]
[358707879,1745397062138,-500.0,0.000467,30]
[358707880,1745397062147,-545.14769102,0.000467,30]
[358707881,1745397062158,-321.79267097,0.000467,30]
[358707882,1745397062167,-500.0,0.000467,30]
[358707883,1745397062176,-500.0,0.000467,30]
[358707884,1745397062185,-500.0,0.000467,30]
[358707885,1745397062194,-372.15188645,0.000467,30]
[358707886,1745397062204,-500.0,0.000467,30]
[358707887,1745397062213,-500.0,0.000467,30]
[358707888,1745397062223,-500.0,0.000467,30]
[358707889,1745397062232,-500.0,0.000467,30]
[358707890,1745397062241,-500.0,0.000467,30]
[358707891,1745397062251,-500.0,0.000467,30]
[358707892,1745397062260,-500.0,0.000467,30]
[358707893,1745397062269,-479.5458333,0.000467,30]
[358707894,1745397062279,-500.0,0.000467,30]
[358707895,1745397062289,-500.0,0.000467,30]
[358707896,1745397062299,-535.37519005,0.000467,30]
[358707897,1745397062308,-500.0,0.000467,30]
[358707898,1745397062318,-500.0,0.000467,30]
[358707899,1745397062327,-564.200653,0.000467,30]
[358707900,1745397062336,-500.0,0.000467,30]
[358707901,1745397062345,-500.0,0.000467,30]
[358707902,1745397062354,-500.0,0.000467,30]
[358707903,1745397062364,-636.2993217,0.000467,30]
[358707904,1745397062373,-500.0,0.000467,30]
[358707905,1745397062382,-500.0,0.000467,30]
[358707906,1745397062391,-500.0,0.000467,30]
[358707907,1745397062401,-500.0,0.000467,30]
[358707908,1745397062410,-500.0,0.000467,30]
[358707909,1745397062419,-500.0,0.000467,30]
[358707910,1745397062430,-500.0,0.000467,30]
[358707911,1745397062439,-636.38525946,0.000467,30]
[358707912,1745397062447,-500.0,0.000467,30]
[358707913,1745397062457,-500.0,0.000467,30]
[358707914,1745397062466,-500.0,0.000467,30]
[358707915,1745397062475,-500.0,0.000467,30]
[358707916,1745397062484,-500.0,0.000467,30]
[358707917,1745397062494,-500.0,0.000467,30]
[358707918,1745397062503,-500.0,0.000467,30]
[358707919,1745397062512,-500.0,0.000467,30]
[358707920,1745397062522,-500.0,0.000467,30]
[358707921,1745397062532,-500.0,0.000467,30]
[358707922,1745397062542,-500.0,0.000467,30]
[358707923,1745397062551,-500.0,0.000467,30]
[358707924,1745397062561,-500.0,0.000467,30]
[358707925,1745397062571,-500.0,0.000467,30]
[358707926,1745397062580,-500.0,0.000467,30]
[358707927,1745397062589,-500.0,0.000467,30]
[358707928,1745397062598,-480.72411185,0.000467,30]
[358707929,1745397062607,-500.0,0.000467,30]
[358707930,1745397062617,-500.0,0.000467,30]
[358707931,1745397062626,-500.0,0.000467,30]
[358707932,1745397062636,-500.0,0.000467,30]
[358707933,1745397062646,-500.0,0.000467,30]
[358707934,1745397062655,-500.0,0.000467,30]
[358707935,1745397062665,-500.0,0.000467,30]
[358707936,1745397062674,-500.0,0.000467,30]
[358707937,1745397062683,-500.0,0.000467,30]
[358707938,1745397062693,-500.0,0.000467,30]
[358707939,1745397062702,-164.69336122,0.000467,30]
[358707940,1745397062712,-500.0,0.000467,30]
[358707941,1745397062721,-500.0,0.000467,30]
[358707942,1745397062730,-500.0,0.000467,30]
[358707943,1745397062740,-500.0,0.000467,30]
[358707944,1745397062749,-500.0,0.000467,30]
[358707945,1745397062758,-500.0,0.000467,30]
[358707946,1745397062767,-500.0,0.000467,30]
[358707947,1745397062776,-500.0,0.000467,30]
[358707948,1745397062786,-500.0,0.000467,30]
[358707949,1745397062795,-519.01886462,0.000467,30]
[358707950,1745397062805,-203.77797574,0.000467,30]
[358707951,1745397062814,-500.0,0.000467,30]
[358707952,1745397062824,-500.0,0.000467,30]
[358707953,1745397062833,-500.0,0.000467,30]
[358707954,1745397062842,-500.0,0.000467,30]
[358707955,1745397062851,-500.0,0.000467,30]
[358707956,1745397062861,-500.0,0.000467,30]
[358707957,1745397062870,-500.0,0.000467,30]
[358707958,1745397062879,-500.0,0.000467,30]
[358707959,1745397062889,-500.0,0.000467,30]
[358707960,1745397062899,-500.0,0.000467,30]
[358707961,1745397062908,-500.0,0.000467,30]
[358707962,1745397062917,-500.0,0.000467,30]
[358707963,1745397062926,-500.0,0.000467,30]
[358707964,1745397062935,-500.0,0.000467,30]
[358707965,1745397062944,-500.0,0.000467,30]
[358707966,1745397062954,-500.0,0.000467,30]
[358707967,1745397062963,-500.0,0.000467,30]
[358707968,1745397062972,-500.0,0.000467,30]
[358707969,1745397062981,-500.0,0.000467,30]
[358707970,1745397062991,-500.0,0.000467,30]
[358707971,1745397063000,-500.0,0.000467,30]
[358707972,1745397063009,-500.0,0.000467,30]
[358707973,1745397063019,-608.89847888,0.000467,30]
[358707974,1745397063028,-500.0,0.000467,30]
[358707975,1745397063037,-500.0,0.000467,30]
[358707976,1745397063046,-567.51159185,0.000467,30]
[358707977,1745397063055,-500.0,0.000467,30]
[358707978,1745397063064,-500.0,0.000467,30]
[358707979,1745397063073,-500.0,0.000467,30]
[358707980,1745397063082,-500.0,0.000467,30]
[358707981,1745397063092,-500.0,0.000467,30]
[358707982,1745397063101,-500.0,0.000467,30]
[358707983,1745397063112,-189.77708146,0.000467,30]
[358707984,1745397063121,-500.0,0.000467,30]
[358707985,1745397063130,-500.0,0.000467,30]
[358707986,1745397063139,-500.0,0.000467,30]
[358707987,1745397063148,-500.0,0.000467,30]
[358707988,1745397063158,-500.0,0.000467,30]
[358707989,1745397063167,-500.0,0.000467,30]
[358707990,1745397063176,-500.0,0.000467,30]
[358707991,1745397063185,-500.0,0.000467,30]
[358707992,1745397063195,-152.83897934,0.000467,30]
[358707993,1745397063205,-593.96350661,0.000467,30]
[358707994,1745397063215,-500.0,0.000467,30]
[358707995,1745397063224,-500.0,0.000467,30]
[358707996,1745397063233,-508.19477068,0.000467,30]
[358707997,1745397063242,-2993.71405026,0.000467,2]
[358707998,1745397063251,-500.0,0.000467,30]
[358707999,1745397063261,-500.0,0.000467,30]
[358708000,1745397063270,-587.89718775,0.000467,30]
[358708001,1745397063279,-169.34597237,0.000467,30]
[358708002,1745397063291,-500.0,0.000467,30]
[358708003,1745397063301,-500.0,0.000467,30]
[358708004,1745397063310,-500.0,0.000467,30]
[358708005,1745397063319,-500.0,0.000467,30]
[358708006,1745397063329,-500.0,0.000467,30]
[358708007,1745397063339,-500.0,0.000467,30]
[358708008,1745397063348,-500.0,0.000467,30]
[358708009,1745397063357,-500.0,0.000467,30]
[358708010,1745397063367,-500.0,0.000467,30]
[358708011,1745397063377,-500.0,0.000467,30]
[358708012,1745397063386,-500.0,0.000467,30]
[358708013,1745397063395,-500.0,0.000467,30]
[358708014,1745397063410,-500.0,0.000467,30]
[358708015,1745397063420,-500.0,0.000467,30]
[358708016,1745397063430,-500.0,0.000467,30]
[358708017,1745397063440,-500.0,0.000467,30]
[358708018,1745397063450,-500.0,0.000467,30]
[358708019,1745397063460,-500.0,0.000467,30]
[358708020,1745397063470,-500.0,0.000467,30]
[358708021,1745397063479,-500.0,0.000467,30]
[358708022,1745397063488,-574.71161593,0.000467,30]
[358708023,1745397063498,-438.36509,0.000467,30]
[358708024,1745397063507,-438.36509,0.000467,30]
[358708025,1745397063516,-500.0,0.000467,12]
[358708026,1745397063526,-589.46,0.000467,30]
[358708027,1745397063535,-500.0,0.000467,12]
[358708028,1745397063545,-589.46,0.000467,30]
[358708029,1745397063554,-500.0,0.000467,12]
[358708030,1745397063564,-589.46,0.000467,30]
[358708031,1745397063574,-500.0,0.000467,12]
[358708032,1745397063583,-589.46,0.000467,30]
[358708033,1745397063593,-500.0,0.000467,12]
[358708034,1745397063602,-589.46,0.000467,30]
[358708035,1745397063612,-500.0,0.000467,12]
[358708036,1745397063621,-589.46,0.000467,30]
[358708037,1745397063631,-500.0,0.000467,12]
[358708038,1745397063640,-589.46,0.000467,30]
[358708039,1745397063650,-500.0,0.000467,12]
[358708040,1745397063659,-589.46,0.000467,30]
[358708041,1745397063669,-500.0,0.000467,12]
[358708042,1745397063679,-589.46,0.000467,30]
[358708043,1745397063688,-500.0,0.000467,12]
[358708044,1745397063698,-589.46,0.000467,30]
[358708045,1745397063708,-500.0,0.000467,12]
[358708046,1745397063717,-589.46,0.000467,30]
[358708047,1745397063727,-500.0,0.000467,12]
[358708048,1745397063738,-589.46,0.000467,30]
[358708049,1745397063748,-500.0,0.000467,12]
[358708050,1745397063758,-589.46,0.000467,30]
[358708051,1745397063767,-596.08632746,0.000467,12]
[358708052,1745397063777,-589.46,0.000467,30]
[358708053,1745397063787,-589.46,0.000467,30]
[358708054,1745397063797,-589.46,0.000467,30]
[358708055,1745397063807,-589.46,0.000467,30]
[358708056,1745397063817,-589.46,0.000467,30]
[358708057,1745397063827,-589.46,0.000467,30]
[358708058,1745397063837,-589.46,0.000467,30]
[358708059,1745397063847,-589.46,0.000467,30]
[358708060,1745397063857,-589.46,0.000467,30]
[358708061,1745397063866,-589.46,0.000467,30]
[358708062,1745397063876,-500.0,0.000467,30]
[358708063,1745397063886,-589.68831183,0.000467,30]
[358708064,1745397063896,-594.99656836,0.000467,30]
[358708065,1745397063905,-500.0,0.000467,30]
[358708066,1745397063916,-500.0,0.000467,30]
[358708067,1745397063925,-500.0,0.000467,30]
[358708068,1745397063936,-500.0,0.000467,30]
[358708069,1745397063946,-521.19604547,0.000467,30]
[358708070,1745397063955,-500.0,0.000467,30]
[358708071,1745397063965,-500.0,0.000467,30]
[358708072,1745397063975,-500.0,0.000467,30]
[358708073,1745397063985,-500.0,0.000467,30]
[358708074,1745397063994,-500.0,0.000467,30]
[358708075,1745397064003,-500.0,0.000467,30]
[358708076,1745397064013,-500.0,0.000467,30]
[358708077,1745397064022,-500.0,0.000467,30]
[358708078,1745397064032,-500.0,0.000467,30]
[358708079,1745397064042,-500.0,0.000467,30]
[358708080,1745397064052,-500.0,0.000467,30]
[358708081,1745397064061,-500.0,0.000467,30]
[358708082,1745397064071,-500.0,0.000467,30]
[358708083,1745397064081,-500.0,0.000467,30]
[358708084,1745397064091,-500.0,0.000467,30]
[358708085,1745397064101,-500.0,0.000467,30]
[358708086,1745397064114,-500.0,0.000467,30]
[358708087,1745397064124,-500.0,0.000467,30]
[358708088,1745397064133,-500.0,0.000467,30]
[358708089,1745397064143,-500.0,0.000467,30]
[358708090,1745397064153,-500.0,0.000467,30]
[358708091,1745397064162,-500.0,0.000467,30]
[358708092,1745397064172,-500.0,0.000467,30]
[358708093,1745397064182,-500.0,0.000467,30]
[358708094,1745397064193,-500.0,0.000467,30]
[358708095,1745397064202,-500.0,0.000467,30]
[358708096,1745397064212,-495.06807303,0.000467,30]
[358708097,1745397064222,-500.0,0.000467,30]
[358708098,1745397064231,-500.0,0.000467,30]
[358708099,1745397064241,-500.0,0.000467,30]
[358708100,1745397064251,-453.97640971,0.000467,30]
[358708101,1745397064260,-500.0,0.000467,30]
[358708102,1745397064270,-500.0,0.000467,30]
[358708103,1745397064280,-500.0,0.000467,30]
[358708104,1745397064289,-500.0,0.000467,30]
[358708105,1745397064299,-631.54939806,0.000467,30]
[358708106,1745397064309,-2150.99,0.000467,30]
[358708107,1745397064318,-504.94373535,0.000467,30]
[358708108,1745397064327,-2150.99,0.000467,30]
[358708109,1745397064494,-2150.99,0.000467,30]
[358708110,1745397064524,-2150.99,0.000467,30]
[358708111,1745397064534,-2150.99,0.000467,30]
[358708112,1745397064544,-2150.99,0.000467,30]
[358708113,1745397064553,-500.0,0.000467,30]
[358708114,1745397064564,-2150.99,0.000467,30]
[358708115,1745397064573,-500.0,0.000467,30]
[358708116,1745397064583,-2150.99,0.000467,30]
[358708117,1745397064592,-500.0,0.000467,30]
[358708118,1745397064602,-2150.99,0.000467,30]
[358708119,1745397064612,-500.0,0.000467,30]
[358708120,1745397064621,-723.84,0.000467,30]
[358708121,1745397064630,-2150.99,0.000467,30]
[358708122,1745397064640,-723.84,0.000467,30]
[358708123,1745397064650,-500.0,0.000467,30]
[358708124,1745397064660,-2150.99,0.000467,30]
[358708125,1745397064669,-723.84,0.000467,30]
[358708126,1745397064678,-500.0,0.000467,30]
[358708127,1745397064688,-2150.99,0.000467,30]
[358708128,1745397064697,-500.0,0.000467,30]
[358708129,1745397064706,-723.84,0.000467,30]
[358708130,1745397064716,-500.0,0.000467,30]
[358708131,1745397064726,-335.25275633,0.000467,30]
[358708132,1745397064735,-2150.99,0.000467,30]
[358708133,1745397064745,-500.0,0.000467,30]
[358708134,1745397064754,-723.84,0.000467,30]
[358708135,1745397064763,-2150.99,0.000467,30]
[358708136,1745397064772,-723.84,0.000467,30]
[358708137,1745397064782,-531.5355051,0.000467,30]
[358708138,1745397064792,-2150.99,0.000467,30]
[358708139,1745397064801,-723.84,0.000467,30]
[358708140,1745397064810,-2150.99,0.000467,30]
[358708141,1745397064819,-723.84,0.000467,30]
[358708142,1745397064829,-2150.99,0.000467,30]
[358708143,1745397064839,-500.0,0.000467,30]
[358708144,1745397064848,-723.84,0.000467,30]
[358708145,1745397064858,-2150.99,0.000467,30]
[358708146,1745397064868,-723.84,0.000467,30]
[358708147,1745397064878,-2150.99,0.000467,30]
[358708148,1745397064888,-500.0,0.000467,30]
[358708149,1745397064897,-723.84,0.000467,30]
[358708150,1745397064906,-500.0,0.000467,30]
[358708151,1745397064916,-2150.99,0.000467,30]
[358708152,1745397064926,-723.84,0.000467,30]
[358708153,1745397064935,-531.5398807,0.000467,30]
[358708154,1745397064945,-2150.99,0.000467,30]
[358708155,1745397064954,-723.84,0.000467,30]
[358708156,1745397064963,-723.84,0.000467,30]
[358708157,1745397064973,-2150.99,0.000467,30]
[358708158,1745397064983,-723.84,0.000467,30]
[358708159,1745397064992,-705.62226486,0.000467,30]
[358708160,1745397065159,-18.21773514,0.000467,30]
[358708161,1745397065169,-723.84,0.000467,30]
[358708162,1745397065180,-1245.27502593,0.000467,30]
[358708163,1745397065193,-719.9587482,0.000467,30]
[358708164,1745397065276,-244.0,0.00032,5]
[358708165,1745397065286,-1000.0,0.0003298,28]
[358708166,1745397065296,-1000.0,0.0003298,28]
[358708167,1745397065306,-1000.0,0.0003298,28]
[358708168,1745397065316,-1000.0,0.0003298,28]
[358708169,1745397065326,-1000.0,0.0003298,28]
[358708170,1745397065336,-196.9085449,0.000466,2]
[358708171,1745397065346,-185.75622587,0.000467,30]
[358708172,1745397065355,-723.84,0.000467,30]
[358708173,1745397065365,-2151.05720596,0.000467,30]
[358708174,1745397065374,-723.84,0.000467,30]
[358708175,1745397065383,-723.84,0.000467,30]
[358708176,1745397065393,-500.0,0.000467,30]
[358708177,1745397065402,-723.84,0.000467,30]
[358708178,1745397065412,-157.43729999,0.000467,30]
[358708179,1745397065422,-723.84,0.000467,30]
[358708180,1745397065431,-515.48,0.000467,30]
[358708181,1745397065441,-723.84,0.000467,30]
[358708182,1745397065450,-21.81589328,0.000467,30]
[358708183,1745397065465,-493.66410672,0.000467,30]
[358708184,1745397065475,-515.48,0.000467,30]
[358708185,1745397065484,-125.33089372,0.000467,30]
[358708186,1745397065499,-354.06948437,0.000467,30]
[358708187,1745397065510,-244.52962191,0.000467,30]
[358708188,1745397065521,-97.86289009,0.000467,30]
[358708189,1745397065538,-417.61710991,0.000467,30]
[358708190,1745397065548,-515.48,0.000467,30]
[358708191,1745397065558,-515.48,0.000467,30]
[358708192,1745397065567,-515.48,0.000467,30]
[358708193,1745397065577,-515.48,0.000467,30]
[358708194,1745397065587,-515.48,0.000467,30]
[358708195,1745397065596,-401.48357049,0.000467,30]
[358708196,1745397066005,-113.99642951,0.000467,30]
[358708197,1745397066015,-515.48,0.000467,30]
[358708198,1745397066025,-500.0,0.000467,30]
[358708199,1745397066036,-515.48,0.000467,30]
[358708200,1745397066049,-500.0,0.000467,30]
[358708201,1745397066059,-515.48,0.000467,30]
[358708202,1745397066069,-500.0,0.000467,30]
[358708203,1745397066078,-515.48,0.000467,30]
[358708204,1745397066089,-428.25781254,0.000467,30]
[358708205,1745397066099,-515.48,0.000467,30]
[358708206,1745397066112,-515.48,0.000467,30]
[358708207,1745397066122,-500.0,0.000467,30]
[358708208,1745397066132,-515.48,0.000467,30]
[358708209,1745397066141,-459.85575816,0.000467,30]
[358708210,1745397095731,500.0,0.00019966,7]
[358708211,1745397128334,799.378959,7.945e-05,2]
[358708216,1745397282608,-185.35651561,0.00019786,2]
[358708217,1745397282631,-3014.4883,0.00019886,2]
[358708218,1745397282653,-320.7946,0.000199,2]
[358708219,1745397282674,-435.6213,0.000199,2]
[358708220,1745397282696,-2500.0,0.000199,2]
[358708221,1745397282717,-250.0,0.00019966,2]
[358708222,1745397282740,-151.0,0.0002,2]
[358708223,1745397282762,-151.0,0.0002,2]
[358708224,1745397282784,-250.0,0.000202,2]
[358708225,1745397282806,-1921.75469,0.000205,2]
[358708226,1745397282827,-1921.75469,0.000205,2]
[358708227,1745397282848,-2989.640974,0.000205,2]
[358708228,1745397282869,-151.0,0.000205,2]
[358708229,1745397282891,-152.60655,0.000205,2]
[358708230,1745397282912,-250.0,0.00021,2]
[358708231,1745397282936,-1711.58496155,0.000211,3]
[358708232,1745397282958,-250.0,0.00021394,2]
[358708233,1745397282980,-250.0,0.0002189,2]
[358708234,1745397283002,-1921.75469,0.00022,7]
[358708235,1745397283026,-1921.75469,0.00022,7]
[358708236,1745397283049,-2989.640974,0.00022,7]
[358708237,1745397283071,-151.0,0.00022,7]
[358708238,1745397283099,-302.35,0.00022071,2]
[358708239,1745397283123,-300.58,0.00022071,2]
[358708240,1745397283145,-303.34,0.00022071,2]
[358708241,1745397283170,-1711.58496145,0.00022279,3]
[358708242,1745397283195,-302.13,0.000225,2]
[358708243,1745397283221,-300.0,0.00023,2]
[358708244,1745397283245,-1711.58496145,0.00023659,4]
[358708245,1745397283269,-280.81,0.00023836,2]
[358708246,1745397283291,-4395.28609532,0.00024543,2]
[358708247,1745397283314,-1921.75469,0.000248,7]
[358708248,1745397283336,-1921.75469,0.000248,7]
[358708249,1745397283360,-2108.07166662,0.000248,7]
[358708260,1745397558485,667.48,0.00018048,2]
[358708265,1745397604174,540.57611593,0.00037808,60]
[358708324,1745398150401,247.19,0.00034143,120]
[358708329,1745398232212,-500.0,0.00019966,2]
[358708330,1745398232222,-654.55713743,0.0002,2]
[358708331,1745398232264,-1626.60839758,0.0002,2]
[358708332,1745398232318,-2718.83446499,0.0002,2]
[358708333,1745398232329,-667.48,0.00020312,2]
[358708334,1745398232339,-500.0,0.00021,10]
[358708335,1745398232348,-2396.21894608,0.000211,3]
[358708336,1745398232358,-1698.56305507,0.00021956,2]
[358708337,1745398232370,-911.57,0.00021956,2]
[358708466,1745398238131,150.0,0.00027,120]
[358708467,1745398238168,-1073.58885093,0.00021956,2]
[358708468,1745398238179,-300.0,0.00022067,2]
[358708469,1745398238190,-158.0,0.0002218,2]
[358708470,1745398238199,-259.6836861,0.0002218,2]
[358708471,1745398238208,-2396.21894603,0.00022279,3]
[358708472,1745398238218,-667.48,0.00022576,2]
[358708473,1745398238227,-2058.22095019,0.00023659,4]
[358708474,1745398238326,-337.99799584,0.00023659,4]
[358708475,1745398238336,-504.96,0.00023659,2]
[358708476,1745398238345,-420.0,0.00023978,2]
[358708477,1745398238355,-667.48,0.0002484,2]
[358708478,1745398238364,-350.0,0.00025,2]
[358708479,1745398238386,-2396.21894603,0.00025038,5]
[358708480,1745398238396,-2396.21894603,0.00026417,6]
[358708481,1745398238406,-300.78,0.00026676,2]
[358708482,1745398238417,-300.1,0.00026676,2]
[358708483,1745398238427,-305.61,0.00026676,2]
[358708484,1745398238437,-400.0,0.00027,2]
[358708485,1745398238447,-667.48,0.00027104,2]
[358708486,1745398238457,-2396.21894603,0.00027797,7]
[358708487,1745398238466,-450.0,0.00029,2]
[358708488,1745398238476,-500.0,0.00029141,2]
[358708489,1745398238485,-2396.21894603,0.00029176,8]
[358708490,1745398238498,-2059.0,0.00029241,2]
[358708491,1745398238508,-876.0,0.00029241,2]
[358708492,1745398238518,-883.359,0.00029241,2]
[358708493,1745398238527,-667.48,0.00029368,2]
[358708494,1745398238538,-286.09770798,0.0002946,2]
[358708495,1745398238555,-19.63229202,0.0002946,2]
[358708496,1745398238565,-204.8328884,0.0002976,2]
[358708497,1745398238577,-292.75330365,0.00030133,2]
[358708498,1745398238587,-966.70924555,0.00030555,9]
[358708499,1745398238602,-548.03388,0.00030555,9]
[358708500,1745398238614,-433.13563861,0.00030555,9]
[358708501,1745398238665,169.0,0.000323,120]
[358708546,1745398240538,-448.34018187,0.00030555,9]
[358708547,1745398240553,-500.0,0.00031,2]
[358708548,1745398240574,-667.48,0.00031632,2]
[358708549,1745398240591,-1062.85482071,0.00031925,2]
[358708550,1745398240603,-2396.21894603,0.00031934,10]
[358708551,1745398240615,-2059.0,0.00032241,2]
[358708552,1745398240628,-876.0,0.00032241,2]
[358708553,1745398240639,-870.0,0.00032241,2]
[358708554,1745398240651,-1365.90085563,0.00032791,2]
[358708555,1745398240663,-176.49,0.00032877,2]
[358708556,1745398240676,-550.0,0.00033,2]
[358708557,1745398240687,-2396.21894603,0.00033314,11]
[358708558,1745398240699,-282.47,0.00033527,2]
[358708559,1745398240710,-23900.0,0.00033624,2]
[358708560,1745398240722,-223.56,0.00033741,2]
[358708561,1745398240735,-667.48,0.00033895,2]
[358708562,1745398240751,-327.62,0.00034144,2]
[358708563,1745398240763,-221.45,0.00034276,2]
[358708564,1745398240775,-2396.21894603,0.00034693,12]
[358708565,1745398240787,-600.0,0.00035,2]
[358708566,1745398240798,-166.66,0.00035032,2]
[358708567,1745398240810,-1000.0,0.00035146,2]
[358708568,1745398240821,-2059.0,0.00035241,2]
[358708569,1745398240833,-876.0,0.00035241,2]
[358708570,1745398240848,-870.0,0.00035241,2]
[358708571,1745398240860,-163.02,0.00035593,30]
[358708572,1745398240872,-176.94,0.00035617,2]
[358708573,1745398240883,-2396.21894603,0.00036072,13]
[358708574,1745398240895,-667.48,0.00036159,2]
[358708575,1745398240908,-166.66,0.00036188,2]
[358708576,1745398240920,-650.0,0.00037,2]
[358708577,1745398240931,-166.66,0.00037345,2]
[358708578,1745398240943,-2396.21894603,0.00037452,13]
[358708579,1745398240955,-727.762,0.00038241,2]
[358708580,1745398240967,-876.0,0.00038241,2]
[358708581,1745398240979,-870.0,0.00038241,2]
[358708582,1745398240991,-190.06024417,0.00038294,51]
[358708583,1745398241003,-700.0,0.00038356,2]
[358708584,1745398241014,-700.0,0.00038356,2]
[358708585,1745398241026,-700.0,0.00038356,2]
[358708586,1745398241037,-700.0,0.00038356,2]
[358708587,1745398241049,-700.0,0.00038356,2]
[358708590,1745398241061,-700.0,0.00038356,2]
[358708592,1745398241072,-700.0,0.00038356,2]
[358708593,1745398241083,-700.0,0.00038356,2]
[358708594,1745398241095,-700.0,0.00038356,2]
[358708595,1745398241106,-700.0,0.00038356,2]